bitfinex/quotes_SOLUSD_20241117
["timestamp","ask_amount","ask_price","bid_price","bid_amount"]
[1731858748147,0.09367462,234.28,234.23,11.82243731]
[1731858748522,20.0,234.27,234.23,11.82243731]
[1731858748730,23.776884,234.26,234.23,11.82243731]
[1731858749826,0.34465462,234.25,234.21,11.82243731]
[1731858750251,0.34465462,234.25,234.2,7.56197867]
[1731858750553,23.87055862,234.23,234.13,16.0013]
[1731858750847,0.09367462,234.19,234.14,7.56197867]
[1731858751250,0.09367462,234.19,234.16,7.56197867]
[1731858751648,23.87055862,234.19,234.16,7.56197867]
[1731858752027,4.2702,234.18,234.16,7.56197867]
[1731858752245,20.34465462,234.16,234.08,23.2583]
[1731858752456,20.34465462,234.16,234.07,0.4809142]
[1731858752457,32.03946844,234.14,234.07,0.4809142]
[1731858752747,0.12549,234.16,234.11,11.82030382]
[1731858752942,23.776884,234.17,234.13,11.82030382]
[1731858753143,23.776884,234.18,234.15,11.82030382]
[1731858753333,0.09367462,234.17,234.15,11.82030382]
[1731858753540,23.87055862,234.17,234.15,11.82030382]
[1731858753948,23.87055862,234.17,234.14,11.82030382]
[1731858754336,28.14105862,234.17,234.14,11.82030382]
[1731858755043,0.12549,234.16,234.14,11.82030382]
[1731858755431,23.87055862,234.15,234.12,11.82030382]
[1731858756656,23.776884,234.17,234.14,11.82030382]
[1731858757030,23.87055862,234.18,234.14,11.82030382]
[1731858757554,28.14085862,234.18,234.14,11.82030382]
[1731858758055,0.09367462,234.16,234.14,11.82030382]
[1731858759136,23.776884,234.18,234.14,11.82030382]
[1731858759329,23.776884,234.19,234.16,11.82030382]
[1731858759969,0.09367462,234.18,234.16,11.82030382]
[1731858761847,0.09367462,234.18,234.14,11.82030382]
[1731858765039,23.902374,234.17,234.12,11.82030382]
[1731858765246,0.09367462,234.14,234.1,11.82030382]
[1731858766956,0.09367462,234.14,234.12,11.82030382]
[1731858767841,23.902374,234.15,234.12,11.82030382]
[1731858767842,23.776884,234.15,234.12,11.82030382]
[1731858768059,23.776884,234.17,234.14,11.82030382]
[1731858768464,0.09367462,234.15,234.14,11.82030382]
[1731858769159,0.12549,234.16,234.14,11.82030382]
[1731858769343,23.776884,234.17,234.14,11.82030382]
[1731858769541,0.12549,234.18,234.14,11.82030382]
[1731858769860,0.12549,234.18,234.16,11.82030382]
[1731858770161,0.12549,234.21,234.16,11.82030382]
[1731858770452,0.25098,234.21,234.18,11.82030382]
[1731858770659,0.09367462,234.2,234.18,11.82030382]
[1731858771048,0.09367462,234.21,234.18,11.82030382]
[1731858771848,0.12549,234.2,234.18,11.82030382]
[1731858772446,0.12549,234.2,234.17,7.56327876]
[1731858774054,0.12549,234.2,234.15,7.56327876]
[1731858777951,0.12549,234.2,234.16,7.56327876]
[1731858778262,23.99604862,234.18,234.14,7.56327876]
[1731858779766,23.99604862,234.18,234.16,7.56327876]
[1731858779940,23.902374,234.21,234.16,7.56327876]
[1731858780142,4.2678,234.31,234.2,7.56327876]
[1731858780358,11.83107876,234.31,234.22,7.56327876]
[1731858780769,0.09367462,234.3,234.22,7.56327876]
[1731858781060,11.83107876,234.31,234.01,65.61840635]
[1731858781061,21.8448,234.23,234.01,65.61840635]
[1731858781241,21.8448,234.23,234.13,7.56327876]
[1731858781242,29.40807876,234.23,234.13,7.56327876]
[1731858781441,4.2696,234.21,234.07,15.7439142]
[1731858781653,23.87055862,234.18,234.15,7.56327876]
[1731858781843,23.776884,234.18,234.15,7.56327876]
[1731858782046,6.71066469,234.29,234.07,15.7439142]
[1731858782047,20.0,234.27,234.17,7.56327876]
[1731858782241,6.5758,234.28,234.12,30.25311504]
[1731858782242,0.09367462,234.23,234.21,7.56327876]
[1731858783042,0.12549,234.26,234.09,0.1]
[1731858783043,0.21916462,234.24,234.09,0.1]
[1731858783240,4.48836462,234.24,234.16,7.56327876]
[1731858783476,4.48836462,234.24,234.14,7.56327876]
[1731858783477,0.21916462,234.22,234.14,7.56327876]
[1731858783964,0.09367462,234.18,234.14,7.56327876]
[1731858784278,0.09367462,234.16,234.14,7.56327876]
[1731858784445,0.09367462,234.14,234.12,7.56327876]
[1731858786946,0.09367462,234.12,234.11,7.56327876]
[1731858787261,0.09367462,234.12,234.07,0.4809142]
[1731858787454,0.09367462,234.12,234.1,7.56327876]
[1731858788159,0.09367462,234.1,234.07,0.4809142]
[1731858788356,0.09367462,234.1,234.07,8.04419296]
[1731858789461,4.61635462,234.1,234.07,0.4809142]
[1731858789657,0.09367462,234.08,234.07,0.4809142]
[1731858791349,0.09367462,234.09,234.07,0.4809142]
[1731858793287,0.34465462,234.09,234.07,0.4809142]
[1731858794760,23.99604862,234.08,234.07,0.4809142]
[1731858800371,23.99604862,234.08,234.07,0.4809142]
[1731858803180,20.0,234.16,234.07,0.4809142]
[1731858803361,4.2707,234.15,234.08,7.56327876]
[1731858803557,0.09367462,234.11,234.07,0.4809142]
[1731858804364,23.99604862,234.09,234.07,0.4809142]
[1731858805067,0.34465462,234.08,234.07,0.4809142]
[1731858805265,20.34465462,234.08,234.07,0.4809142]
[1731858805577,44.12153862,234.08,234.07,0.4809142]
[1731858806583,48.39353862,234.08,234.07,0.4809142]
[1731858807301,48.39353862,234.08,233.9,15.5213]
[1731858807302,20.12549,234.04,233.9,15.5213]
[1731858807469,7.56327876,234.03,233.9,15.5213]
[1731858807784,0.09367462,234.01,233.96,7.56327876]
[1731858808166,0.09367462,234.01,233.85,15.6213]
[1731858808373,0.09367462,233.99,233.92,7.56327876]
[1731858808588,0.09367462,233.99,233.94,7.56327876]
[1731858808762,0.09367462,233.99,233.85,15.5213]
[1731858808981,20.09367462,233.96,233.83,0.4809142]
[1731858809171,20.09367462,233.96,233.87,7.56327876]
[1731858809366,0.09367462,233.92,233.89,7.56327876]
[1731858811389,0.09367462,233.92,233.83,0.4809142]
[1731858811593,0.09367462,233.92,233.88,7.56327876]
[1731858813488,0.09367462,233.92,233.83,0.4809142]
[1731858813693,0.09367462,233.92,233.9,7.56327876]
[1731858814767,0.09367462,233.92,233.83,0.4809142]
[1731858814768,0.09367462,233.92,233.88,7.56327876]
[1731858816085,0.09367462,233.9,233.87,7.56327876]
[1731858816593,0.09367462,233.9,233.83,0.4809142]
[1731858816792,0.09367462,233.84,233.83,0.4809142]
[1731858817375,0.09367462,233.85,233.83,0.4809142]
[1731858818580,23.87055862,233.87,233.83,0.4809142]
[1731858819082,0.21916462,233.85,233.83,0.4809142]
[1731858820374,23.776884,233.84,233.83,0.4809142]
[1731858820574,23.87055862,233.84,233.83,0.4809142]
[1731858821794,4.2758,233.88,233.83,0.4809142]
[1731858822000,23.776884,233.87,233.83,8.04419296]
[1731858822294,0.09367462,233.86,233.83,8.04419296]
[1731858822486,4.2754,233.9,233.85,7.56327876]
[1731858823085,4.2744,233.95,233.89,7.56327876]
[1731858823282,4.2741,233.97,233.93,7.56327876]
[1731858824288,0.09367462,233.96,233.93,7.56327876]
[1731858824484,4.2737,233.99,233.93,7.56327876]
[1731858824686,0.09367462,234.0,233.93,7.56327876]
[1731858825000,4.2734,234.01,233.95,7.56327876]
[1731858825199,4.2734,234.01,233.85,15.5986]
[1731858825377,0.09367462,234.0,233.93,7.56327876]
[1731858825888,23.87055862,233.98,233.93,7.56327876]
[1731858826298,0.09367462,233.96,233.92,11.84212099]
[1731858827099,23.87055862,233.96,233.92,11.84212099]
[1731858827303,23.87055862,233.94,233.9,11.84212099]
[1731858827898,0.09367462,233.92,233.88,11.84212099]
[1731858828099,0.09367462,233.88,233.83,0.4809142]
[1731858828477,0.09367462,233.86,233.83,0.4809142]
[1731858831183,0.09367462,233.84,233.83,0.4809142]
[1731858832495,0.34465462,233.84,233.83,0.4809142]
[1731858833094,48.39793862,233.84,233.83,0.4809142]
[1731858834796,58.95185015,233.84,233.83,0.4809142]
[1731858836480,69.33498154,233.84,233.83,0.4809142]
[1731858836684,0.12549,233.81,233.69,11.84212099]
[1731858836881,0.34465462,233.76,233.69,11.84212099]
[1731858837115,20.34465462,233.76,233.69,11.84212099]
[1731858837285,0.09367462,233.74,233.67,11.84212099]
[1731858837486,0.34465462,233.74,233.67,11.84212099]
[1731858837696,20.34465462,233.7,233.6,3.84092917]
[1731858838005,20.34465462,233.7,233.62,11.84212099]
[1731858838185,0.12549,233.69,233.64,11.84212099]
[1731858838385,0.09367462,233.67,233.64,11.84212099]
[1731858839383,23.87055862,233.69,233.64,11.84212099]
[1731858840202,28.180174,233.76,233.68,11.84212099]
[1731858840402,23.99604862,233.74,233.7,11.84212099]
[1731858840707,23.87055862,233.72,233.7,11.84212099]
[1731858841409,23.87055862,233.72,233.68,11.84212099]
[1731858841805,23.87055862,233.72,233.7,11.84212099]
[1731858842586,23.87055862,233.72,233.6,16.7044142]
[1731858842587,23.87055862,233.7,233.6,0.4809142]
[1731858842811,23.87055862,233.7,233.64,11.84212099]
[1731858843000,0.09367462,233.68,233.64,11.84212099]
[1731858843390,0.09367462,233.68,233.66,11.84212099]
[1731858844417,0.09367462,233.68,233.64,11.84212099]
[1731858844418,23.87055862,233.68,233.64,11.84212099]
[1731858845091,0.09367462,233.68,233.64,11.84212099]
[1731858845700,0.09367462,233.68,233.66,11.84212099]
[1731858846509,4.278,233.76,233.66,11.84212099]
[1731858846714,4.278,233.76,233.7,11.84212099]
[1731858847494,0.09367462,233.75,233.6,0.4809142]
[1731858847823,0.09367462,233.71,233.64,11.84212099]
[1731858847992,0.09367462,233.71,233.68,11.84212099]
[1731858848699,0.09367462,233.71,233.7,11.84212099]
[1731858849295,0.09367462,233.71,233.68,11.84212099]
[1731858849596,23.87055862,233.71,233.68,11.99716599]
[1731858849796,44.12153862,233.69,233.68,0.155045]
[1731858850515,48.40063862,233.69,233.68,0.155045]
[1731858853101,70.85983862,233.69,233.68,0.155045]
[1731858854203,0.12549,233.66,233.57,11.84212099]
[1731858854401,0.21916462,233.63,233.57,11.84212099]
[1731858854717,0.09367462,233.59,233.57,11.84212099]
[1731858854902,0.21916462,233.59,233.52,0.487116]
[1731858855105,0.09367462,233.57,233.52,0.487116]
[1731858855305,0.09367462,233.57,233.55,11.84212099]
[1731858855797,19.84465462,233.63,233.55,11.84212099]
[1731858856205,23.776884,233.55,233.39,6.6289099]
[1731858856406,11.84212099,233.54,233.45,11.84212099]
[1731858856594,11.84212099,233.54,233.37,0.1]
[1731858856595,11.84212099,233.54,233.43,11.84212099]
[1731858857926,11.84212099,233.54,233.34,15.6797]
[1731858857927,0.12549,233.55,233.48,11.84212099]
[1731858858098,0.09367462,233.53,233.48,11.84212099]
[1731858858297,0.12549,233.54,233.5,11.84212099]
[1731858858298,23.776884,233.54,233.5,11.84212099]
[1731858858895,24.027864,233.61,233.5,11.84212099]
[1731858859099,22.32802099,233.62,233.52,11.84212099]
[1731858859333,22.32802099,233.62,233.46,22.7831]
[1731858859507,0.09367462,233.61,233.46,16.5686]
[1731858859693,0.09367462,233.59,233.46,16.5686]
[1731858859898,10.4859,233.62,233.46,16.5686]
[1731858860521,0.21916462,233.6,233.46,16.5686]
[1731858860710,0.12549,233.59,233.46,16.5686]
[1731858860915,24.027864,233.57,233.46,16.5686]
[1731858861229,24.027864,233.57,233.51,11.84212099]
[1731858861515,0.09367462,233.56,233.51,11.84212099]
[1731858861720,0.09367462,233.56,233.49,11.84212099]
[1731858861721,0.12549,233.55,233.49,11.84212099]
[1731858861917,0.12549,233.55,233.47,11.84212099]
[1731858861918,0.09367462,233.54,233.47,11.84212099]
[1731858862300,20.09367462,233.54,233.47,11.84212099]
[1731858862514,0.09367462,233.5,233.45,11.84212099]
[1731858862703,0.21916462,233.48,233.41,11.84212099]
[1731858862905,0.09367462,233.46,233.41,11.84212099]
[1731858863313,0.12549,233.45,233.4,11.84212099]
[1731858863515,23.776884,233.42,233.36,11.84212099]
[1731858863723,23.776884,233.42,233.4,11.84212099]
[1731858864015,23.776884,233.42,233.33,0.1]
[1731858864214,4.37607462,233.51,233.41,11.84212099]
[1731858864415,20.34465462,233.47,233.39,11.84212099]
[1731858864621,0.21916462,233.43,233.39,11.84212099]
[1731858864822,0.21916462,233.41,233.37,11.84212099]
[1731858865829,23.776884,233.42,233.39,11.84212099]
[1731858866006,0.12549,233.43,233.41,11.84212099]
[1731858866350,20.0,233.49,233.42,11.84212099]
[1731858866829,0.09367462,233.48,233.42,11.84212099]
[1731858867315,20.0,233.51,233.44,11.84212099]
[1731858867514,23.902374,233.51,233.46,11.84212099]
[1731858867723,23.902374,233.51,233.37,0.1]
[1731858867724,0.09367462,233.5,233.44,11.84212099]
[1731858868525,0.09367462,233.5,233.46,11.84212099]
[1731858868722,24.2813,233.57,233.48,11.84212099]
[1731858868924,4.2813,233.57,233.5,11.84212099]
[1731858869122,4.2813,233.57,233.48,11.84212099]
[1731858869123,0.09367462,233.56,233.48,11.84212099]
[1731858869504,4.2813,233.57,233.48,11.84212099]
[1731858870112,11.84212099,233.53,233.36,20.1]
[1731858870315,11.84212099,233.5,233.4,11.84212099]
[1731858870509,0.09367462,233.49,233.4,11.84212099]
[1731858870708,0.12549,233.48,233.4,11.84212099]
[1731858871032,0.12549,233.48,233.42,11.84212099]
[1731858871221,0.21916462,233.47,233.42,11.84212099]
[1731858872330,0.21916462,233.47,233.4,11.84212099]
[1731858872541,23.87055862,233.47,233.4,11.84212099]
[1731858872838,0.09367462,233.45,233.4,11.84212099]
[1731858873134,0.09367462,233.45,233.38,11.84212099]
[1731858873135,23.87055862,233.45,233.38,11.84212099]
[1731858874209,28.15415862,233.45,233.36,11.84212099]
[1731858874835,23.776884,233.46,233.4,11.84212099]
[1731858875035,23.776884,233.47,233.4,11.84212099]
[1731858875337,23.776884,233.49,233.42,11.84212099]
[1731858875633,6.7772724,233.57,233.44,11.84212099]
[1731858875634,11.84212099,233.54,233.44,11.84212099]
[1731858875833,16.12362099,233.56,233.46,11.84212099]
[1731858876025,10.9009,233.63,233.46,11.84212099]
[1731858876026,6.4773,233.65,233.54,11.84212099]
[1731858876235,25.38236154,233.65,233.55,19.00506154]
[1731858876435,19.00506154,233.63,233.53,19.00506154]
[1731858877129,0.09367462,233.61,233.55,19.00506154]
[1731858877311,6.3773,233.65,233.57,19.00506154]
[1731858877513,23.28446154,233.68,233.59,19.00506154]
[1731858877736,19.00506154,233.64,233.55,19.00506154]
[1731858877928,19.00506154,233.64,233.53,19.00506154]
[1731858878727,0.09367462,233.6,233.53,19.00506154]
[1731858878928,20.09367462,233.54,233.45,19.00506154]
[1731858879139,23.776884,233.53,233.45,19.00506154]
[1731858879712,23.87055862,233.54,233.45,19.00506154]
[1731858880440,23.87055862,233.54,233.47,19.00506154]
[1731858880934,23.776884,233.54,233.47,19.00506154]
[1731858881513,19.00506154,233.59,233.49,19.00506154]
[1731858881820,23.776884,233.57,233.53,19.00506154]
[1731858882010,23.776884,233.57,233.5,19.00506154]
[1731858882336,23.776884,233.6,233.54,19.00506154]
[1731858882734,4.2807,233.61,233.54,19.00506154]
[1731858882937,10.9195,233.63,233.54,19.00506154]
[1731858883315,0.09367462,233.62,233.54,19.00506154]
[1731858883539,0.09367462,233.6,233.54,19.00506154]
[1731858884338,23.99604862,233.6,233.54,19.00506154]
[1731858884520,23.776884,233.59,233.54,19.00506154]
[1731858884943,23.776884,233.59,233.52,19.00506154]
[1731858885625,0.09367462,233.53,233.44,19.00506154]
[1731858885820,24.12153862,233.53,233.44,19.00506154]
[1731858886321,44.027864,233.58,233.49,19.00506154]
[1731858886514,4.37497462,233.57,233.49,19.00506154]
[1731858886715,48.058084,233.58,233.49,19.00506154]
[1731858887111,24.2809,233.6,233.51,19.00506154]
[1731858887314,24.2809,233.6,233.53,19.00506154]
[1731858887315,23.776884,233.59,233.53,19.00506154]
[1731858887929,0.34465462,233.58,233.49,19.00506154]
[1731858888250,23.99604862,233.56,233.49,19.00506154]
[1731858889340,23.99604862,233.56,233.47,19.00506154]
[1731858889640,4.2817,233.55,233.47,19.00506154]
[1731858890333,28.27764862,233.56,233.47,19.00506154]
[1731858892136,0.09367462,233.52,233.43,19.00506154]
[1731858892337,23.99604862,233.52,233.43,19.00506154]
[1731858892531,23.776884,233.52,233.43,19.00506154]
[1731858893044,44.12153862,233.54,233.43,19.00506154]
[1731858893253,23.776884,233.52,233.43,19.00506154]
[1731858894038,23.776884,233.52,233.45,19.00506154]
[1731858895329,4.282,233.54,233.47,19.00506154]
[1731858895535,0.09367462,233.55,233.47,19.00506154]
[1731858895722,19.00506154,233.61,233.51,19.00506154]
[1731858895923,4.2804,233.62,233.53,19.00506154]
[1731858896527,0.09367462,233.61,233.53,19.00506154]
[1731858897032,4.2808,233.6,233.53,19.00506154]
[1731858897233,23.776884,233.59,233.53,19.00506154]
[1731858898446,4.2808,233.6,233.53,19.00506154]
[1731858898645,0.1,233.68,233.46,15.6294]
[1731858898646,19.00506154,233.65,233.55,19.00506154]
[1731858898818,10.7833,233.69,233.61,19.00506154]
[1731858899023,0.09367462,233.68,233.61,19.00506154]
[1731858899734,10.7833,233.69,233.61,19.00506154]
[1731858899935,23.87055862,233.68,233.63,19.00506154]
[1731858900635,19.3495,233.73,233.65,19.00506154]
[1731858900821,4.2785,233.73,233.65,19.00506154]
[1731858901348,6.5041,233.75,233.67,19.00506154]
[1731858901648,4.2778,233.77,233.69,19.00506154]
[1731858901848,19.00506154,233.79,233.71,19.00506154]
[1731858901849,23.28246154,233.79,233.71,19.00506154]
[1731858902519,0.09367462,233.78,233.71,19.00506154]
[1731858902926,4.2774,233.79,233.71,19.00506154]
[1731858903335,6.5041,233.82,233.75,19.00506154]
[1731858903548,6.5041,233.82,233.77,19.00506154]
[1731858903867,19.00506154,233.81,233.72,19.00506154]
[1731858904250,23.28136154,233.85,233.76,19.00506154]
[1731858904619,23.28096154,233.87,233.78,19.00506154]
[1731858905231,0.09367462,233.86,233.78,19.00506154]
[1731858905428,23.28096154,233.87,233.78,19.00506154]
[1731858905629,20.0,233.86,233.78,19.00506154]
[1731858905838,23.99604862,233.85,233.78,19.00506154]
[1731858906149,4.2759,233.87,233.8,19.00506154]
[1731858906526,0.0459134,233.89,233.85,19.00506154]
[1731858906725,0.0459134,233.89,233.87,19.00506154]
[1731858909741,0.0459134,233.89,233.85,19.00506154]
[1731858913057,0.0459134,233.89,233.87,19.00506154]
[1731858913737,19.05097494,233.89,233.72,16.1881]
[1731858914052,0.09367462,233.84,233.75,19.00506154]
[1731858914247,0.09367462,233.82,233.73,19.00506154]
[1731858914445,23.99604862,233.82,233.73,19.00506154]
[1731858914751,23.776884,233.83,233.77,19.00506154]
[1731858915247,19.00506154,233.87,233.79,19.00506154]
[1731858915453,23.776884,233.87,233.81,19.00506154]
[1731858915829,23.776884,233.87,233.79,19.00506154]
[1731858916639,28.052784,233.87,233.79,19.00506154]
[1731858919952,20.0,233.87,233.81,19.00506154]
[1731858920255,23.776884,233.89,233.83,19.00506154]
[1731858920446,23.776884,233.89,233.72,16.0881]
[1731858920447,23.776884,233.89,233.81,19.00506154]
[1731858920757,0.21916462,233.88,233.79,19.00506154]
[1731858921141,4.49496462,233.88,233.81,19.00506154]
[1731858921341,10.853166,233.9,233.83,19.00506154]
[1731858921653,23.776884,233.89,233.83,19.00506154]
[1731858922255,0.12549,233.88,233.81,19.00506154]
[1731858922554,4.40109,233.89,233.81,19.00506154]
[1731858922752,23.776884,233.88,233.81,19.00506154]
[1731858924362,23.776884,233.84,233.75,19.00506154]
[1731858924540,23.776884,233.82,233.72,35.09316154]
[1731858924739,23.776884,233.82,233.72,19.00506154]
[1731858925050,23.776884,233.8,233.72,19.00506154]
[1731858926054,6.4791,233.84,233.78,19.00506154]
[1731858926256,6.4791,233.95,233.83,19.00506154]
[1731858926439,4.2752,233.91,233.83,19.00506154]
[1731858926642,4.332266,233.9,233.81,19.00506154]
[1731858927539,24.12153862,233.89,233.81,19.00506154]
[1731858928239,28.39733862,233.87,233.81,19.00506154]
[1731858928444,23.902374,233.87,233.81,19.00506154]
[1731858928636,0.056966,233.9,233.85,19.00506154]
[1731858929966,23.83385,233.9,233.85,19.00506154]
[1731858931061,0.056966,233.9,233.85,19.00506154]
[1731858931356,23.83385,233.9,233.85,19.00506154]
[1731858934463,0.12549,233.83,233.73,19.00506154]
[1731858934668,23.776884,233.82,233.73,19.00506154]
[1731858934973,19.00506154,233.89,233.8,19.00506154]
[1731858935469,23.902374,233.88,233.8,19.00506154]
[1731858935638,19.00506154,233.87,233.78,19.00506154]
[1731858936041,19.00506154,233.85,233.76,19.00506154]
[1731858936258,0.12549,233.83,233.76,19.00506154]
[1731858936863,39.13055154,233.83,233.74,19.00506154]
[1731858937044,23.776884,233.82,233.74,19.00506154]
[1731858938049,0.21916462,233.81,233.74,19.00506154]
[1731858938253,0.12549,233.81,233.74,19.00506154]
[1731858939657,23.776884,233.83,233.76,19.00506154]
[1731858939850,0.21916462,233.82,233.76,19.00506154]
[1731858940954,23.776884,233.8,233.76,19.00506154]
[1731858941461,23.776884,233.8,233.74,19.00506154]
[1731858941965,39.34971616,233.79,233.7,19.00506154]
[1731858942147,0.12549,233.76,233.7,19.00506154]
[1731858942347,23.902374,233.76,233.7,19.00506154]
[1731858942646,0.12549,233.76,233.7,19.00506154]
[1731858943057,23.776884,233.76,233.7,19.00506154]
[1731858944367,23.776884,233.76,233.72,19.00506154]
[1731858945273,23.28216154,233.81,233.72,19.00506154]
[1731858945451,6.281,233.84,233.76,19.00506154]
[1731858945769,10.5574,233.84,233.76,19.00506154]
[1731858946342,10.5574,233.84,233.77,11.8571959]
[1731858946974,20.0,233.83,233.77,11.8571959]
[1731858947549,23.776884,233.82,233.77,11.8571959]
[1731858950366,23.776884,233.83,233.79,11.8571959]
[1731858950674,23.776884,233.83,233.81,11.8571959]
[1731858951046,23.776884,233.85,233.81,11.8571959]
[1731858951251,20.0,233.89,233.83,11.8571959]
[1731858951475,20.0,233.89,233.85,11.8571959]
[1731858951675,0.09367462,233.89,233.85,11.8571959]
[1731858951871,10.613366,233.9,233.85,11.8571959]
[1731858952080,0.056966,233.9,233.87,11.8571959]
[1731858952253,0.056966,233.9,233.89,11.8571959]
[1731858953955,6.3749,234.03,233.94,159.8]
[1731858954175,18.2320959,234.1,234.02,11.8571959]
[1731858954376,0.09367462,234.07,234.0,11.8571959]
[1731858954855,0.09367462,234.09,234.0,11.8571959]
[1731858955252,0.12549,234.06,234.0,11.8571959]
[1731858955452,4.272,234.08,234.02,11.8571959]
[1731858956393,10.6466,234.1,234.02,18.93059759]
[1731858956660,20.09367462,234.09,234.02,18.93059759]
[1731858957057,23.776884,234.06,234.02,18.93059759]
[1731858958170,23.776884,234.06,234.0,18.93059759]
[1731858958473,0.21916462,234.05,233.98,18.93059759]
[1731858959367,23.776884,234.04,233.98,18.93059759]
[1731858960263,0.21916462,234.03,233.98,18.93059759]
[1731858960466,0.21916462,234.03,233.96,18.93059759]
[1731858961986,23.776884,234.04,234.0,18.93059759]
[1731858962174,23.902374,234.07,234.0,18.93059759]
[1731858963061,0.09367462,234.06,234.0,18.93059759]
[1731858963261,23.87055862,234.06,234.0,18.93059759]
[1731858963586,23.776884,234.06,234.0,18.93059759]
[1731858964473,0.12549,234.07,234.0,18.93059759]
[1731858964777,23.776884,234.06,234.0,18.93059759]
[1731858965481,43.902374,234.08,234.0,18.93059759]
[1731858965786,43.902374,234.08,234.02,18.93059759]
[1731858966196,6.3749,234.1,233.89,26.7599]
[1731858966197,6.3749,234.1,234.06,18.93059759]
[1731858966479,18.93059759,234.12,234.04,18.93059759]
[1731858966986,0.09367462,234.11,234.04,18.93059759]
[1731858967286,4.2713,234.12,234.06,18.93059759]
[1731858967466,6.521,234.15,234.08,18.93059759]
[1731858967667,4.2706,234.16,234.1,18.93059759]
[1731858967861,4.2704,234.17,234.1,18.93059759]
[1731858968067,4.2706,234.16,234.1,18.93059759]
[1731858968970,18.93059759,234.18,234.08,18.93059759]
[1731858969172,18.93059759,234.14,234.04,18.93059759]
[1731858969362,4.756125,234.13,234.05,18.93059759]
[1731858969567,20.21916462,234.11,234.05,18.93059759]
[1731858969767,23.902374,234.1,234.03,18.93059759]
[1731858970069,0.484925,234.13,234.07,18.93059759]
[1731858971467,24.261809,234.13,234.07,18.93059759]
[1731858971668,23.99604862,234.12,234.05,18.93059759]
[1731858973389,28.26734862,234.12,234.05,18.93059759]
[1731858974591,0.12549,234.11,234.03,18.93059759]
[1731858974786,23.99604862,234.1,234.01,18.93059759]
[1731858975286,23.776884,234.1,234.03,18.93059759]
[1731858975464,23.776884,234.11,234.03,18.93059759]
[1731858976279,0.34465462,234.1,234.03,18.93059759]
[1731858977270,28.048484,234.11,233.98,16.1586]
[1731858977271,23.776884,234.11,234.05,18.93059759]
[1731858978295,23.776884,234.11,234.05,11.82833253]
[1731858979192,23.776884,234.09,234.01,11.82833253]
[1731858980671,0.12549,234.08,234.01,11.82833253]
[1731858983089,23.776884,234.09,234.01,11.82833253]
[1731858983391,0.484925,234.13,234.05,11.82833253]
[1731858983694,0.484925,234.13,234.1,11.82833253]
[1731858984376,0.484925,234.13,234.01,0.1]
[1731858984377,0.484925,234.13,234.12,11.82833253]
[1731858985792,11.82833253,234.27,234.18,159.315075]
[1731858985997,0.09367462,234.22,234.14,11.82833253]
[1731858986476,11.82833253,234.25,234.16,11.82833253]
[1731858987193,23.776884,234.24,234.16,11.82833253]
[1731858987874,23.776884,234.24,234.14,11.82833253]
[1731858988081,23.776884,234.24,234.06,15.9132]
[1731858988082,11.92200715,234.21,234.12,11.82833253]
[1731858988290,11.92200715,234.19,234.1,11.82833253]
[1731858988482,0.12549,234.17,234.1,11.82833253]
[1731858990395,23.776884,234.18,234.1,11.82833253]
[1731858990581,0.12549,234.17,234.1,11.82833253]
[1731858993197,23.776884,234.19,234.12,11.82833253]
[1731858993395,23.776884,234.19,234.14,11.82833253]
[1731858993600,23.776884,234.19,234.06,15.8132]
[1731858993601,6.3045,234.26,234.18,11.82833253]
[1731858993799,11.82833253,234.23,234.14,11.82833253]
[1731858994012,0.09367462,234.22,234.14,11.82833253]
[1731858994878,23.776884,234.2,234.14,11.82833253]
[1731858996000,23.99604862,234.22,234.14,11.82833253]
[1731858996690,11.82833253,234.29,234.19,11.82833253]
[1731858996891,11.82833253,234.27,234.17,11.82833253]
[1731858997094,0.09367462,234.24,234.17,11.82833253]
[1731858997399,11.82833253,234.25,234.17,11.82833253]
[1731858997594,0.09367462,234.24,234.17,11.82833253]
[1731858997802,11.82833253,234.23,234.13,11.82833253]
[1731858997997,23.902374,234.22,234.13,11.82833253]
[1731858998181,11.82833253,234.21,234.13,11.82833253]
[1731858998589,23.776884,234.2,234.13,11.82833253]
[1731859002407,11.82833253,234.15,234.07,11.82833253]
[1731859002704,23.902374,234.14,234.07,11.82833253]
[1731859003401,11.82833253,234.13,234.05,11.82833253]
[1731859003590,23.776884,234.12,234.05,11.82833253]
[1731859004309,23.776884,234.09,234.0,16.2141]
[1731859004609,4.2716,234.1,234.0,16.2141]
[1731859004610,23.776884,234.07,234.0,11.82833253]
[1731859004985,23.776884,234.07,234.02,11.82833253]
[1731859005180,23.776884,234.09,234.02,11.82833253]
[1731859006787,20.25098,234.01,233.89,26.20736254]
[1731859007108,23.776884,233.96,233.87,11.82833253]
[1731859007413,0.12549,233.97,233.89,11.82833253]